fUSD/lending_fUSD_20260130
["ID","MTS","AMOUNT","RATE_DAILY","PERIOD"]
[404077596,1769791844331,-1000.79205538,0.00016921,2]
[404077597,1769791844343,-1000.0,0.00016921,2]
[404077598,1769791844352,-459.6118856,0.00016921,2]
[404077599,1769791844362,-490.28446551,0.00016921,2]
[404077600,1769791844371,-1000.0,0.00016921,2]
[404077601,1769791844380,-1000.91709451,0.00016921,2]
[404077602,1769791844389,-1000.0,0.00016921,2]
[404077603,1769791844399,-1000.0,0.00016921,2]
[404077604,1769791844408,-1000.28855452,0.00016921,2]
[404077605,1769791844418,-500.0,0.00016948,2]
[404077606,1769791844427,-251.11897888,0.00016962,2]
[404077607,1769791844437,-772.81,0.00016969,2]
[404077608,1769791844448,-375.74784584,0.0001698,2]
[404077609,1769791844458,-500.0,0.00016999,2]
[404077610,1769791844467,-500.0,0.00016999,2]
[404077611,1769791844477,-250.0,0.00017,2]
[404077612,1769791844486,-779.37052,0.00017,2]
[404077613,1769791844497,-500.0,0.00017003,2]
[404077614,1769791844506,-260.4103811,0.00017017,2]
[404077615,1769791844515,-500.0,0.00017057,2]
[404077616,1769791844525,-270.0455652,0.00017072,2]
[404077617,1769791844534,-418.7216809,0.00017098,2]
[404077618,1769791844543,-161.63871302,0.00017103,7]
[404077619,1769791844552,-1000.0,0.00017112,2]
[404077620,1769791844563,-500.0,0.00017112,2]
[404077621,1769791844572,-280.03725112,0.00017127,2]
[404077622,1769791844582,-9209.99165126,0.00017139,2]
[404077623,1769791844591,-14161.43997167,0.00017139,2]
[404077624,1769791844601,-500.0,0.00017167,2]
[404077625,1769791844612,-290.39862941,0.00017182,2]
[404077626,1769791844622,-500.0,0.00017222,2]
[404077627,1769791844631,-181.08010149,0.00017235,2]
[404077628,1769791844640,-885.86649465,0.00017235,2]
[404077629,1769791844650,-301.1433787,0.00017237,2]
[404077630,1769791844660,-772.81,0.00017243,2]
[404077631,1769791844669,-587.0,0.00017245,2]
[404077632,1769791844679,-239.8103178,0.00017277,2]
[404077633,1769791844690,-351.03,0.00017321,2]
[404077634,1769791844700,-292.6,0.00017357,2]
[404077635,1769791844709,-163.0,0.0001736,2]
[404077636,1769791844719,-150.0,0.00017394,2]
[404077637,1769791844728,-200.0,0.00017399,2]
[404077638,1769791844738,-2351.0,0.00017399,2]
[404077639,1769791844749,-153.53,0.000174,2]
[404077640,1769791844760,-375.74784584,0.0001744,2]
[404077641,1769791844770,-183.75,0.00017443,2]
[404077642,1769791844780,-377.4,0.00017468,2]
[404077643,1769791844789,-1000.8272521,0.00017468,2]
[404077644,1769791844799,-1505.10384072,0.00017468,2]
[404077645,1769791844808,-1500.0,0.00017468,2]
[404077646,1769791844817,-580.80754144,0.00017468,2]
[404077647,1769791844827,-1500.0,0.00017468,2]
[404077648,1769791844836,-1500.0,0.00017468,2]
[404077649,1769791844845,-1000.71065871,0.00017468,2]
[404077650,1769791844855,-1500.0,0.00017468,2]
[404077651,1769791844864,-1000.73878486,0.00017468,2]
[404077652,1769791844874,-656.65111135,0.00017468,2]
[404077653,1769791844883,-206.11887871,0.00017468,2]
[404077654,1769791844892,-1500.0,0.00017468,2]
[404077655,1769791844901,-1500.0,0.00017468,2]
[404077656,1769791844911,-1500.0,0.00017468,2]
[404077657,1769791844922,-772.81,0.00017517,2]
[404077658,1769791844932,-9209.99165126,0.00017519,2]
[404077659,1769791844942,-14161.43997167,0.00017519,2]
[404077660,1769791844956,-303.78,0.00017587,2]
[404077661,1769791844967,-1000.0,0.00017587,2]
[404077662,1769791844977,-583.855,0.00017587,2]
[404077663,1769791844986,-152.32567294,0.00017597,2]
[404077664,1769791844996,-13105.30345281,0.00017615,2]
[404077665,1769791845006,-19604.75018869,0.00017615,2]
[404077666,1769791845015,-26525.9214,0.00017615,2]
[404077667,1769791845026,-1000.0,0.00017709,2]
[404077668,1769791845036,-200.0,0.00017718,2]
[404077669,1769791845045,-158.82094085,0.00017763,2]
[404077670,1769791845056,-177.3,0.00017779,2]
[404077671,1769791845065,-187.78006525,0.00017783,2]
[404077672,1769791845077,-918.64355495,0.00017783,2]
[404077673,1769791845087,-195.05905622,0.00017789,2]
[404077674,1769791845096,-772.81,0.00017791,2]
[404077675,1769791845105,-10000.0,0.000178,2]
[404077676,1769791845115,-500.0,0.00017808,2]
[404077677,1769791845126,-460.64092,0.0001782,2]
[404077678,1769791845138,-460.64093,0.0001782,2]
[404077679,1769791845147,-460.64092,0.0001782,2]
[404077680,1769791845157,-460.64093,0.0001782,2]
[404077681,1769791845167,-500.0,0.00017829,2]
[404077682,1769791845178,-500.0,0.00017829,2]
[404077683,1769791845188,-109605.83836455,0.0001783,2]
[404077684,1769791845202,-1000.0,0.00017836,2]
[404077685,1769791845212,-200.0,0.00017856,2]
[404077686,1769791845221,-500.0,0.00017863,2]
[404077687,1769791845231,-339.97413964,0.00017879,2]
[404077688,1769791845240,-494.33434811,0.00017879,2]
[404077689,1769791845250,-165.50957456,0.00017879,3]
[404077690,1769791845259,-5549.67507167,0.00017879,2]
[404077691,1769791845269,-203.0,0.00017882,2]
[404077692,1769791845278,-339.97413964,0.0001789,2]
[404077693,1769791845288,-494.3343481,0.0001789,2]
[404077694,1769791845297,-165.50957456,0.0001789,3]
[404077695,1769791845306,-5549.67507167,0.0001789,2]
[404077696,1769791845316,-1867.99728494,0.000179,2]
[404077697,1769791845325,-375.74784584,0.000179,2]
[404077698,1769791845335,-25000.0,0.000179,3]
[404077699,1769791845344,-710.6373,0.000179,3]
[404077700,1769791845354,-9209.99165126,0.000179,2]
[404077702,1769791845363,-339.97413964,0.000179,2]
[404077704,1769791845373,-14161.43997167,0.000179,2]
[404077706,1769791845383,-494.3343481,0.000179,2]
[404077708,1769791845392,-165.50957456,0.000179,3]
[404077710,1769791845402,-5549.67507167,0.000179,2]
[404077712,1769791845411,-303.93510522,0.000179,2]
[404077714,1769791845421,-3261.0,0.000179,2]
[404077716,1769791845430,-500.0,0.00017918,2]
[404077717,1769791845439,-159.03805157,0.00017969,2]
[404077718,1769791845450,-500.0,0.00017972,2]
[404077719,1769791845460,-500.0,0.00017973,2]
[404077720,1769791845469,-500.0,0.00017973,2]
[404077721,1769791845479,-161.46714206,0.00017973,2]
[404077722,1769791845489,-500.0,0.00017973,2]
[404077723,1769791845499,-161.90727761,0.00017973,2]
[404077724,1769791845510,-500.0,0.00017973,2]
[404077725,1769791845520,-500.0,0.00017973,2]
[404077726,1769791845529,-500.0,0.00017973,2]
[404077727,1769791845539,-500.0,0.00017973,2]
[404077728,1769791845548,-500.0,0.00017973,2]
[404077729,1769791845558,-500.0,0.00017973,2]
[404077730,1769791845567,-500.0,0.00017973,2]
[404077731,1769791845577,-150.0,0.00017973,2]
[404077732,1769791845587,-500.0,0.00017973,2]
[404077733,1769791845596,-500.0,0.00017973,2]
[404077734,1769791845605,-500.0,0.00017973,2]
[404077735,1769791845615,-500.0,0.00017973,2]
[404077736,1769791845624,-161.13076084,0.00017973,2]
[404077737,1769791845635,-160.00319068,0.00017973,2]
[404077738,1769791845645,-333.51196878,0.00017973,2]
[404077739,1769791845654,-158.22969695,0.00017973,2]
[404077740,1769791845664,-210.27851574,0.00017973,2]
[404077741,1769791845673,-500.78976485,0.00017973,2]
[404077742,1769791845684,-500.0,0.00017973,2]
[404077743,1769791845694,-500.0,0.00017973,2]
[404077744,1769791845706,-500.0,0.00017973,2]
[404077745,1769791845716,-500.0,0.00017973,2]
[404077746,1769791845726,-500.0,0.00017973,2]
[404077747,1769791845736,-500.2342072,0.00017973,2]
[404077748,1769791845746,-500.0,0.00017973,2]
[404077749,1769791845756,-500.0,0.00017973,2]
[404077750,1769791845765,-163.36858583,0.00017973,2]
[404077751,1769791845775,-500.0,0.00017973,2]
[404077752,1769791845784,-500.63516671,0.00017973,2]
[404077753,1769791845794,-160.13080306,0.00017973,2]
[404077754,1769791845803,-500.0,0.00017973,2]
[404077755,1769791845813,-175.57287607,0.00017973,2]
[404077756,1769791845824,-500.0,0.00017973,2]
[404077757,1769791845834,-160.23001291,0.00017973,2]
[404077758,1769791845845,-500.0,0.00017973,2]
[404077759,1769791845855,-500.0,0.00017973,2]
[404077760,1769791845866,-500.0,0.00017973,2]
[404077761,1769791845876,-151.06501544,0.00017973,2]
[404077762,1769791845887,-500.0,0.00017973,2]
[404077763,1769791845896,-432.02224032,0.00017973,2]
[404077764,1769791845906,-500.0,0.00017973,2]
[404077765,1769791845916,-500.0,0.00017973,2]
[404077766,1769791845926,-501.03562757,0.00017973,2]
[404077767,1769791845936,-500.0,0.00017973,2]
[404077768,1769791845948,-500.0,0.00017973,2]
[404077769,1769791845958,-340.31348241,0.00017973,2]
[404077770,1769791845967,-501.19732692,0.00017973,2]
[404077771,1769791845976,-500.0,0.00017973,2]
[404077772,1769791845986,-162.07893444,0.00017973,2]
[404077773,1769791845996,-309.21369256,0.00017973,2]
[404077774,1769791846007,-164.73666016,0.00017973,2]
[404077775,1769791846017,-500.29869688,0.00017973,2]
[404077776,1769791846028,-500.42764262,0.00017973,2]
[404077777,1769791846038,-165.89161412,0.00017973,2]
[404077778,1769791846048,-169.6863681,0.00017973,2]
[404077779,1769791846058,-208.78313746,0.00017973,2]
[404077780,1769791846067,-500.0,0.00017973,2]
[404077781,1769791846078,-500.0,0.00017973,2]
[404077782,1769791846087,-500.0,0.00017973,2]
[404077783,1769791846097,-500.0,0.00017973,2]
[404077784,1769791846107,-208.33059439,0.00017973,2]
[404077785,1769791846117,-500.0,0.00017973,2]
[404077786,1769791846129,-500.0,0.00017973,2]
[404077787,1769791846141,-500.0,0.00017973,2]
[404077788,1769791846150,-500.0,0.00017973,2]
[404077789,1769791846161,-500.0,0.00017973,2]
[404077790,1769791846172,-500.0,0.00017973,2]
[404077791,1769791846182,-500.0,0.00017973,2]
[404077792,1769791846192,-392.26050896,0.00017973,2]
[404077793,1769791846204,-509.35254647,0.00017973,2]
[404077794,1769791846214,-500.0,0.00017973,2]
[404077795,1769791846223,-500.0,0.00017973,2]
[404077796,1769791846232,-284.37159555,0.00017973,2]
[404077797,1769791846242,-500.0,0.00017973,2]
[404077798,1769791846251,-512.27368738,0.00017973,2]
[404077799,1769791846261,-500.0,0.00017973,2]
[404077800,1769791846270,-500.0,0.00017973,2]
[404077801,1769791846280,-500.0,0.00017973,2]
[404077802,1769791846289,-500.0,0.00017973,2]
[404077803,1769791846299,-162.64188199,0.00017973,2]
[404077804,1769791846309,-16783.0787633,0.00017979,2]
[404077805,1769791846318,-808762.7067247,0.00017979,2]
[404077806,1769791846328,-28005.4563604,0.00017979,2]
[404077807,1769791846338,-500.0,0.00017982,2]
[404077808,1769791846348,-500.0,0.00017985,2]
[404077809,1769791846357,-396.00925811,0.00017985,2]
[404077810,1769791846367,-500.0,0.00017985,2]
[404077811,1769791846377,-500.0,0.00017985,2]
[404077812,1769791846386,-500.0,0.00017985,2]
[404077813,1769791846396,-500.0,0.00017985,2]
[404077814,1769791846593,-224.10392643,0.00017989,2]
[404077815,1769791846613,-159.03805157,0.0001799,2]
[404077816,1769791846624,-343.82609125,0.00017998,2]
[404077817,1769791846634,-150.0,0.00017999,2]
[404077818,1769791846645,-173.99288078,0.00017999,2]
[404077819,1769791846655,-300.0,0.00017999,2]
[404077820,1769791846665,-300.0,0.00017999,2]
[404077821,1769791846675,-300.0,0.00017999,2]
[404077822,1769791846685,-666.0,0.00017999,2]
[404077823,1769791846695,-300.0,0.00017999,2]
[404077824,1769791846706,-300.0,0.00017999,2]
[404077825,1769791846715,-666.0,0.00017999,2]
[404077826,1769791846725,-300.0,0.00017999,2]
[404077827,1769791846735,-848601.88751896,0.00018,2]
[404077828,1769791846745,-539043.36500655,0.00018,2]
[404077829,1769791847028,-422.534,0.00018,2]
[404077830,1769791847039,-413.0,0.00018,2]
[404077831,1769791847098,-584.55580658,0.00018,2]
[404077832,1769791847110,-130999.88087999,0.00018,2]
[404077833,1769791847125,-290.4149,0.00018,2]
[404077834,1769791847436,-8139.56044797,0.00017879,2]
[404077835,1769791847447,-5365.69268448,0.00018,2]
[404077836,1769791847528,-3848.68264906,0.00018,2]
[404077837,1769791847936,-2960.95425817,0.00018,2]
[404077838,1769791848045,-1089.02450381,0.0001789,2]
[404077839,1769791867211,474.07,0.00013096,2]
[404077842,1769792423057,-262.0,0.0001357,2]
[404077843,1769792423080,-166.66,0.0001357,2]
[404077844,1769792423102,-500.0,0.0001357,2]
[404077845,1769792423125,-500.0,0.0001357,2]
[404077846,1769792423147,-500.0,0.0001357,2]
[404077847,1769792423170,-193.08170808,0.0001357,2]
[404077848,1769792423195,-250.0,0.00013581,2]
[404077849,1769792423219,-300.0,0.00013591,2]
[404077850,1769792423245,-319.82,0.00013592,2]
[404077851,1769792423267,-177.88619195,0.00013756,2]
[404077852,1769792423295,-166.66,0.00013856,2]
[404077853,1769792423320,-166.66,0.00014142,2]
[404077854,1769792423342,-248.48516942,0.00014179,2]
[404077855,1769792423365,-2500.0,0.00014274,2]
[404077856,1769792423385,-3412.9161887,0.00014274,2]
[404077857,1769792423405,-287.0812,0.00014279,2]
[404077858,1769792423425,-300.0,0.00014297,2]
[404077859,1769792423449,-199.0,0.00014297,2]
[404077860,1769792423476,-150.0,0.00014298,2]
[404077861,1769792423500,-1200.0,0.00014298,2]
[404077862,1769792423522,-747.198914,0.00014299,2]
[404077863,1769792423543,-438.37248688,0.00014299,2]
[404077864,1769792423566,-8288.99248617,0.00014299,2]
[404077865,1769792423587,-202.62340348,0.00014299,2]
[404077866,1769792423609,-152.32567294,0.00014299,2]
[404077867,1769792423631,-4922.1305507,0.00014299,2]
[404077868,1769792423653,-4475.0788,0.00014356,2]
[404077869,1769792423676,-151.0,0.00014365,2]
[404077870,1769792423700,-151.0,0.00014365,2]
[404077871,1769792423725,-151.0,0.00014365,2]
[404077872,1769792423748,-151.0,0.00014365,2]
[404077873,1769792423771,-151.0,0.00014365,2]
[404077874,1769792423793,-151.0,0.00014365,2]
[404077875,1769792423816,-151.0,0.00014365,2]
[404077876,1769792423839,-200.0,0.00014365,2]
[404077877,1769792423863,-151.0,0.00014365,2]
[404077878,1769792423888,-151.0,0.00014365,2]
[404077879,1769792423911,-151.0,0.00014365,2]
[404077880,1769792423933,-151.0,0.00014365,2]
[404077881,1769792423956,-200.0,0.00014365,2]
[404077882,1769792423977,-500.0,0.00014365,2]
[404077883,1769792423999,-151.0,0.00014371,2]
[404077884,1769792424021,-151.0,0.00014371,2]
[404077885,1769792424043,-151.0,0.00014371,2]
[404077886,1769792424064,-168.41796006,0.00014373,2]
[404077887,1769792424087,-168.79148807,0.00014373,2]
[404077888,1769792424113,-500.0,0.00014373,2]
[404077889,1769792424135,-340.77570741,0.00014373,2]
[404077890,1769792424158,-500.0,0.00014373,2]
[404077891,1769792424179,-165.19161521,0.00014373,2]
[404077892,1769792424202,-224.57748718,0.00014373,2]
[404077893,1769792424225,-268.46422622,0.00014373,2]
[404077894,1769792424251,-500.0,0.00014373,2]
[404077895,1769792424279,-500.0,0.00014373,2]
[404077896,1769792424303,-500.0,0.00014373,2]
[404077897,1769792424330,-500.0,0.00014373,2]
[404077898,1769792424359,-500.0,0.00014373,2]
[404077899,1769792424383,-500.0,0.00014373,2]
[404077900,1769792424408,-500.0,0.00014373,2]
[404077901,1769792424433,-500.0,0.00014373,2]
[404077902,1769792424463,-500.0,0.00014373,2]
[404077903,1769792424486,-500.0,0.00014373,2]
[404077904,1769792424512,-500.0,0.00014373,2]
[404077905,1769792424537,-500.0,0.00014373,2]
[404077906,1769792424562,-500.0,0.00014373,2]
[404077907,1769792424586,-500.0,0.00014373,2]
[404077908,1769792424611,-335.73928309,0.00014373,2]
[404077909,1769792424635,-500.0,0.00014373,2]
[404077910,1769792424661,-500.0,0.00014373,2]
[404077911,1769792424687,-500.0,0.00014373,2]
[404077912,1769792424713,-500.0,0.00014373,2]
[404077913,1769792424737,-500.0,0.00014373,2]
[404077914,1769792424763,-500.0,0.00014373,2]
[404077915,1769792424787,-500.0,0.00014373,2]
[404077916,1769792424811,-500.0,0.00014373,2]
[404077917,1769792424838,-135287.06946044,0.00014374,2]
[404077919,1769792456128,-200.0,0.00014285,2]
[404077920,1769792456156,-1383.45730986,0.00014364,2]
[404077921,1769792456183,-757416.54269014,0.00014374,2]
[404077922,1769792663809,-247.07759992,0.00014074,2]
[404077923,1769792663831,-3389.54717973,0.00014174,2]
[404077924,1769792663852,-920.76651104,0.00014174,2]
[404077925,1769792663874,-14955.8469631,0.00014174,2]
[404077926,1769792663896,-318.82234703,0.00014198,2]
[404077927,1769792663919,-150.0,0.00014198,2]
[404077928,1769792663941,-195.0,0.00014198,2]
[404077929,1769792663968,-409822.93939918,0.00014199,2]
[404077930,1769792717500,-300.0,0.00014197,2]
[404077931,1769792717523,-1200.0,0.00014197,2]
[404077932,1769792717546,-351.12955868,0.00014198,2]
[404077933,1769792717567,-500.0,0.00014198,2]
[404077934,1769792717591,-190.49325082,0.00014198,2]
[404077935,1769792717614,-649.34139847,0.00014198,2]
[404077936,1769792717637,-500.0,0.00014198,2]
[404077937,1769792717664,-500.0,0.00014198,2]
[404077938,1769792717690,-500.0,0.00014198,2]
[404077939,1769792717712,-500.0,0.00014198,2]
[404077940,1769792717737,-500.0,0.00014198,2]
[404077941,1769792717759,-500.0,0.00014198,2]
[404077942,1769792717782,-543.65513337,0.00014198,2]
[404077943,1769792717806,-500.0,0.00014198,2]
[404077944,1769792717833,-500.0,0.00014198,2]
[404077945,1769792717859,-500.0,0.00014198,2]
[404077946,1769792717885,-500.0,0.00014198,2]
[404077947,1769792717913,-500.0,0.00014198,2]
[404077948,1769792717939,-500.0,0.00014198,2]
[404077949,1769792717969,-500.0,0.00014198,2]
[404077950,1769792717996,-500.0,0.00014198,2]
[404077951,1769792718023,-500.0,0.00014198,2]
[404077952,1769792718048,-500.0,0.00014198,2]
[404077953,1769792718073,-500.0,0.00014198,2]
[404077954,1769792718099,-500.0,0.00014198,2]
[404077955,1769792718125,-500.0,0.00014198,2]
[404077956,1769792718151,-613.2010325,0.00014198,2]
[404077957,1769792718178,-37152.17962616,0.00014199,2]
[404077958,1769792775763,-150.0,0.00014198,2]
[404077959,1769792775786,-300.0,0.00014198,2]
[404077960,1769792775812,-162550.0,0.00014199,2]
[404077963,1769793013496,-220.08765661,0.00013183,2]
[404077970,1769793031730,-2630.04234339,0.00013183,2]
[404077971,1769793031740,-2850.13,0.00013225,2]
[404077972,1769793031752,-2850.13,0.00013267,2]
[404077973,1769793031761,-2850.13,0.00013309,2]
[404077974,1769793031771,-2806.80853622,0.00013351,2]
[404077975,1769793031785,-43.32146378,0.00013351,2]
[404077976,1769793031794,-654.01288788,0.00013362,2]
[404077977,1769793031805,-545.98711212,0.00013362,2]
[404077978,1769793031815,-2386.94193516,0.00013363,2]
[404077979,1769793031827,-8173.56494247,0.00013363,2]
[404077980,1769793031839,-500.0,0.00013363,2]
[404077981,1769793031895,-1636.83312237,0.00013363,2]
[404077982,1769793031905,-260.0,0.00013363,2]
[404077983,1769793031915,-2850.13,0.00013393,2]
[404077984,1769793031925,-2850.13,0.00013435,2]
[404077985,1769793031936,-2850.13,0.00013477,2]
[404077986,1769793031948,-2850.13,0.00013519,2]
[404077987,1769793031957,-2850.13,0.00013562,2]
[404077988,1769793031967,-2850.13,0.00013604,2]
[404077989,1769793031977,-2850.13,0.00013646,2]
[404077990,1769793031986,-2850.13,0.00013688,2]
[404077991,1769793031995,-2850.13,0.0001373,2]
[404077992,1769793032005,-2850.13,0.00013772,2]
[404077993,1769793032015,-2850.13,0.00013814,2]
[404077994,1769793032024,-2850.13,0.00013856,2]
[404077995,1769793032033,-2850.13,0.00013898,2]
[404077996,1769793032042,-2850.13,0.0001394,2]
[404077997,1769793032051,-2850.13,0.00013982,2]
[404077998,1769793032061,-4118.5559,0.00014099,2]
[404077999,1769793032070,-50408.1842,0.00014099,2]
[404078000,1769793032080,-14659.04660253,0.00014111,2]
[404078001,1769793032089,-2986.53360194,0.00014111,2]
[404078002,1769793032099,-922.30487324,0.00014189,2]
[404078003,1769793032109,-445.23,0.00014189,2]
[404078004,1769793032119,-445.23,0.00014189,2]
[404078005,1769793032129,-445.23,0.00014189,2]
[404078006,1769793032138,-445.23,0.00014189,2]
[404078007,1769793032148,-445.23,0.00014189,2]
[404078008,1769793032158,-150.0,0.00014189,2]
[404078009,1769793032168,-151.0,0.0001419,2]
[404078010,1769793032177,-151.0,0.0001419,2]
[404078011,1769793032187,-151.0,0.0001419,2]
[404078012,1769793032197,-151.0,0.0001419,2]
[404078013,1769793032206,-151.0,0.0001419,2]
[404078014,1769793032215,-151.0,0.0001419,2]
[404078015,1769793032225,-151.0,0.0001419,2]
[404078016,1769793032235,-151.0,0.0001419,2]
[404078017,1769793032244,-244.43530043,0.0001419,2]
[404078018,1769793032253,-151.0,0.0001419,2]
[404078019,1769793032263,-151.0,0.0001419,2]
[404078020,1769793032272,-151.0,0.0001419,2]
[404078021,1769793032281,-151.0,0.0001419,2]
[404078022,1769793032291,-151.0,0.0001419,2]
[404078023,1769793032300,-278.80498024,0.0001419,2]
[404078024,1769793032310,-151.0,0.0001419,2]
[404078025,1769793032320,-151.0,0.0001419,2]
[404078026,1769793032329,-151.0,0.0001419,2]
[404078027,1769793032339,-151.0,0.0001419,2]
[404078028,1769793032349,-151.0,0.0001419,2]
[404078029,1769793032359,-151.0,0.0001419,2]
[404078030,1769793032368,-151.0,0.0001419,2]
[404078031,1769793032378,-278.70304671,0.0001419,2]
[404078032,1769793032388,-500.0,0.0001419,2]
[404078033,1769793032398,-600.0,0.00014193,2]
[404078034,1769793032407,-195.0,0.00014195,2]
[404078035,1769793032417,-500.0,0.00014195,2]
[404078036,1769793032426,-1000.0,0.00014198,2]
[404078037,1769793032436,-500.0,0.00014198,2]
[404078038,1769793032446,-457.02233695,0.00014198,2]
[404078039,1769793032456,-831979.74369503,0.00014199,2]
[404078040,1769793032472,-91257.11109719,0.00014199,2]
[404078041,1769793032485,-52947.64463016,0.00014199,2]
[404078042,1769793032496,-190493.64747821,0.00014199,2]
[404078043,1769793032513,-630.75339574,0.00014199,2]
[404078113,1769793039015,-357.66791139,0.00014199,2]
[404078114,1769793039035,-867.29626824,0.00014199,2]
[404078115,1769793039056,-2615.92995068,0.00014199,2]
[404078116,1769793039067,-2625.30000433,0.00014199,2]
[404078117,1769793039094,-5862.5726245,0.00014199,2]
[404078118,1769793039105,-431.62602012,0.00014199,2]
[404078119,1769793039115,-609.59783027,0.00014199,2]
[404078120,1769793039159,-262.51591464,0.00014199,2]
[404078130,1769793039801,-2659.561022,0.00014199,2]
[404078131,1769793039910,-606873.91313216,0.00014199,2]
[404078132,1769793039920,-600.0,0.00014211,2]
[404078133,1769793039930,-600.0,0.00014211,2]
[404078134,1769793039939,-195.0,0.00014234,2]
[404078135,1769793039950,-250.0,0.00014235,2]
[404078136,1769793039961,-4101.77545895,0.00014243,2]
[404078137,1769793039971,-500.0,0.00014285,2]
[404078138,1769793039981,-1000.0,0.00014285,2]
[404078139,1769793039993,-4877.21,0.00014285,2]
[404078140,1769793040002,-500.0,0.00014289,2]
[404078141,1769793040012,-500.0,0.00014289,2]
[404078142,1769793040021,-500.0,0.00014289,2]
[404078143,1769793040031,-500.0,0.00014289,2]
[404078144,1769793040040,-150.0,0.00014289,2]
[404078145,1769793040049,-500.0,0.00014289,2]
[404078146,1769793040058,-150.0,0.00014289,2]
[404078147,1769793040067,-500.0,0.00014289,2]
[404078148,1769793040077,-500.0,0.00014289,2]
[404078149,1769793040086,-150.67479101,0.00014299,2]
[404078150,1769793040096,-150.0,0.00014299,2]
[404078151,1769793040106,-150.0,0.00014299,2]
[404078152,1769793040115,-500.0,0.00014299,2]
[404078153,1769793040124,-500.0,0.00014299,2]
[404078154,1769793040134,-14931.7735835,0.00014301,2]
[404078155,1769793040143,-3598.3418556,0.00014301,2]
[404078156,1769793040153,-275.0,0.00014315,2]
[404078157,1769793040163,-57092.1119949,0.00014317,2]
[404078158,1769793040173,-1283.0,0.00014343,2]
[404078159,1769793040183,-500.0,0.00014344,2]
[404078160,1769793040192,-500.0,0.00014344,2]
[404078161,1769793040202,-500.0,0.00014344,2]
[404078162,1769793040212,-500.0,0.00014344,2]
[404078163,1769793040222,-500.0,0.00014344,2]
[404078164,1769793040232,-150.0,0.00014344,2]
[404078165,1769793040241,-500.0,0.00014344,2]
[404078166,1769793040251,-500.0,0.00014344,2]
[404078167,1769793040260,-150.0,0.00014354,2]
[404078168,1769793040271,-572.18032737,0.00014354,2]
[404078169,1769793040280,-500.0,0.00014354,2]
[404078170,1769793040289,-999.99,0.00014372,2]
[404078171,1769793040299,-9999.99,0.00014372,2]
[404078172,1769793040308,-9999.99,0.00014372,2]
[404078173,1769793040318,-150.99,0.00014372,2]
[404078174,1769793040327,-22908.47,0.00014372,2]
[404078175,1769793040336,-2910.88,0.00014372,2]
[404078176,1769793040346,-150.99,0.00014372,2]
[404078177,1769793040356,-299.99,0.00014372,2]
[404078178,1769793040366,-9999.99,0.00014372,2]
[404078179,1769793040375,-1997.0,0.00014372,2]
[404078180,1769793040385,-500.0,0.00014373,2]
[404078181,1769793040394,-500.0,0.00014373,2]
[404078182,1769793040404,-500.0,0.00014373,2]
[404078183,1769793040414,-500.0,0.00014373,2]
[404078184,1769793040424,-500.0,0.00014373,2]
[404078185,1769793040433,-500.0,0.00014373,2]
[404078186,1769793040443,-500.0,0.00014373,2]
[404078187,1769793040452,-500.0,0.00014373,2]
[404078188,1769793040466,-500.0,0.00014373,2]
[404078189,1769793040476,-326.00819699,0.00014373,2]
[404078190,1769793040486,-500.0,0.00014373,2]
[404078191,1769793040495,-515.28066526,0.00014373,2]
[404078192,1769793040505,-500.0,0.00014373,2]